bitfinex-derivatives/quotes_ETHF0:USTF0_20230101
["timestamp","ask_amount","ask_price","bid_price","bid_amount"]
[1672558067900,6.76517572,1193.4,1193.3,3.5]
[1672558068527,6.76517572,1193.4,1193.3,4.75395188]
[1672558079886,6.76517572,1193.4,1193.3,3.5]
[1672558080195,6.76517572,1193.4,1193.3,4.75395188]
[1672558082613,11.15720158,1193.4,1193.2,7.13487971]
[1672558082815,11.15720158,1193.4,1193.3,3.5]
[1672558086290,11.15720158,1193.4,1193.2,7.13487971]
[1672558086506,11.15720158,1193.4,1193.3,3.0]
[1672558089344,11.15578064,1193.4,1193.3,3.0]
[1672558090398,6.76375478,1193.4,1193.3,3.0]
[1672558091232,3.76375478,1193.5,1193.3,6.13487971]
[1672558091549,6.76375478,1193.5,1193.4,1.25395188]
[1672558091961,3.76375478,1193.5,1193.4,1.25395188]
[1672558092388,3.76375478,1193.6,1193.4,4.3888316]
[1672558092603,4.39202586,1193.9,1193.5,16.01780118]
[1672558092917,4.39202586,1194.0,1193.8,1.25641039]
[1672558093227,7.39202586,1193.9,1193.7,3.14102597]
[1672558093438,4.39202586,1194.0,1193.8,4.0]
[1672558093649,10.03932848,1194.1,1193.8,4.0]
[1672558093869,4.39202586,1194.1,1193.8,4.0]
[1672558094070,3.0,1194.0,1193.8,4.0]
[1672558094918,7.39202586,1194.0,1193.8,4.0]
[1672558095541,3.0,1194.0,1193.8,4.0]
[1672558101638,3.0,1194.0,1193.5,13.652]
[1672558101852,7.39202586,1193.9,1193.4,10.75650309]
[1672558102064,15.77002586,1193.9,1193.1,16.79302597]
[1672558102275,9.40952982,1193.8,1193.1,14.90841039]
[1672558102588,17.78752982,1193.8,1193.2,4.0]
[1672558102809,4.39202586,1193.7,1193.2,4.0]
[1672558103011,12.77002586,1193.7,1193.2,4.0]
[1672558103222,8.378,1193.7,1193.2,4.0]
[1672558103533,3.0,1193.6,1193.2,4.0]
[1672558108271,3.0,1193.6,1193.2,12.378]
[1672558108471,5.57342586,1193.8,1193.2,13.63441039]
[1672558108795,3.0,1193.7,1193.2,25.67466849]
[1672558109836,3.0,1193.7,1193.2,24.4182581]
[1672558110785,3.0,1193.7,1193.2,25.67466849]
[1672558110995,3.0,1193.7,1193.2,24.4182581]
[1672558111414,3.0,1193.7,1193.2,25.67466849]
[1672558116041,3.0,1193.7,1193.2,27.55928407]
[1672558117084,3.0,1193.7,1193.2,25.67466849]
[1672558117301,3.0,1193.7,1193.3,1.25641039]
[1672558117505,3.0,1193.7,1193.4,3.5]
[1672558131486,4.39202586,1193.9,1193.4,4.75641039]
[1672558131804,10.03932848,1194.1,1193.6,8.378]
[1672558132015,3.0,1194.0,1193.6,8.378]
[1672558132225,3.0,1194.0,1193.7,4.0]
[1672558132438,7.39202586,1194.0,1193.7,4.0]
[1672558132650,3.0,1194.0,1193.7,4.0]
[1672558136121,4.39202586,1194.1,1193.7,4.0]
[1672558136337,3.0,1194.0,1193.7,4.0]
[1672558137280,9.14702586,1194.2,1193.7,13.63441039]
[1672558137490,9.14702586,1194.2,1193.7,14.81581039]
[1672558137904,4.755,1194.2,1193.7,16.70042597]
[1672558138956,4.755,1194.2,1193.9,3.5]
[1672558158305,9.14702586,1194.2,1193.9,3.5]
[1672558166499,4.755,1194.2,1193.9,3.5]
[1672558167651,9.14702586,1194.2,1193.9,3.5]
[1672558167871,4.755,1194.2,1193.9,3.5]
[1672558168392,4.39202586,1194.4,1194.0,1.1814]
[1672558168607,4.0,1194.4,1194.1,5.25641039]
[1672558168818,4.0,1194.4,1194.1,12.378]
[1672558171545,8.39202586,1194.4,1194.1,12.378]
[1672558171746,4.0,1194.4,1194.1,13.63441039]
[1672558173006,4.0,1194.4,1194.1,12.378]
[1672558174921,8.39202586,1194.4,1194.1,12.378]
[1672558178904,4.0,1194.4,1194.1,12.378]
[1672558182478,4.0,1194.4,1194.1,13.63441039]
[1672558182900,4.0,1194.4,1194.1,12.378]
[1672558189309,9.40952982,1194.6,1194.1,12.378]
[1672558189511,4.39202586,1194.7,1194.2,1.25641039]
[1672558189722,4.0,1194.6,1194.3,11.878]
[1672558190148,4.0,1194.6,1194.4,12.378]
[1672558191302,3.5,1194.7,1194.4,12.378]
[1672558191718,4.0,1194.7,1194.4,12.378]
[1672558193401,4.0,1194.7,1194.4,12.76558903]
[1672558200539,4.0,1194.7,1194.4,4.0]
[1672558200758,8.39202586,1194.7,1194.3,8.378]
[1672558200970,8.39202586,1194.7,1194.4,4.0]
[1672558203497,13.40952982,1194.7,1194.4,4.0]
[1672558204121,8.39202586,1194.7,1194.4,4.0]
[1672558204753,13.40952982,1194.7,1194.4,4.0]
[1672558206335,4.39202586,1194.6,1194.4,4.0]
[1672558206648,3.5,1194.5,1194.4,3.99503409]
[1672558216633,3.5,1194.5,1194.1,25.17102597]
[1672558216844,3.5,1194.5,1194.3,4.0]
[1672558218951,7.89202586,1194.5,1194.3,4.0]
[1672558230543,12.90952982,1194.5,1194.3,4.0]
[1672558230855,7.89202586,1194.5,1194.3,4.0]
[1672558235380,12.90952982,1194.5,1194.3,4.0]
[1672558236849,4.39202586,1194.4,1194.3,4.0]
[1672558238214,12.90952982,1194.5,1194.3,4.0]
[1672558238743,4.39202586,1194.4,1194.3,4.0]
[1672558242946,4.39202586,1194.4,1194.2,1.25641039]
[1672558243227,10.03932848,1194.4,1194.1,13.652]
[1672558243364,4.89202586,1194.3,1194.0,11.51902597]
[1672558243568,3.5,1194.2,1194.1,4.0]
[1672558254798,3.5,1194.2,1194.0,4.75641039]
[1672558255111,3.5,1194.2,1194.0,5.25641039]
[1672558256898,3.5,1194.2,1194.0,4.0]
[1672558257209,3.5,1194.2,1194.0,5.25641039]
[1672558260994,4.0,1194.3,1194.0,5.25641039]
[1672558261416,4.0,1194.3,1194.0,7.14102597]
[1672558264147,4.0,1194.3,1194.0,15.51902597]
[1672558264358,4.0,1194.3,1194.1,1.25641039]
[1672558264566,4.0,1194.3,1194.2,3.5]
[1672558285063,4.0,1194.3,1194.2,3.49338711]
[1672558293155,4.39202586,1194.4,1194.2,3.49338711]
[1672558294219,4.39202586,1194.4,1194.2,4.7497975]
[1672558294760,4.0,1194.3,1194.2,4.7497975]
[1672558294977,4.0,1194.3,1194.2,3.49338711]
[1672558295183,4.0,1194.3,1194.2,4.7497975]
[1672558298851,4.0,1194.3,1194.2,3.49338711]
[1672558299062,8.39202586,1194.3,1194.2,4.7497975]
[1672558305152,8.39202586,1194.3,1194.2,3.49338711]
[1672558307130,8.39202586,1194.3,1194.2,11.87138711]
[1672558308907,8.39202586,1194.3,1194.2,3.49338711]
[1672558309116,13.41146285,1194.3,1194.2,3.49338711]
[1672558311958,8.39395889,1194.3,1194.2,3.49338711]
[1672558317849,13.41146285,1194.3,1194.2,3.49338711]
[1672558318059,8.39395889,1194.3,1194.2,3.49338711]
[1672558319216,8.39395889,1194.3,1194.0,15.51902597]
[1672558322268,8.39395889,1194.3,1194.0,13.63441039]
[1672558322480,4.39395889,1194.2,1194.0,13.63441039]
[1672558322688,13.41146285,1194.3,1194.0,13.63441039]
[1672558323428,4.39395889,1194.2,1194.0,13.63441039]
[1672558324162,13.41146285,1194.3,1194.0,13.63441039]
[1672558324373,8.39395889,1194.3,1194.0,15.51902597]
[1672558325108,13.41146285,1194.3,1194.0,13.63441039]
[1672558325315,8.39395889,1194.3,1194.1,1.25641039]
[1672558331202,8.39395889,1194.3,1194.2,3.5]
[1672558331944,4.0,1194.3,1194.2,3.5]
[1672558342032,8.39395889,1194.3,1194.2,3.5]
[1672558343191,4.0,1194.3,1194.2,3.5]
[1672558344344,8.39395889,1194.3,1194.2,3.5]
[1672558359920,8.39395889,1194.3,1194.2,3.49570402]
[1672558375889,8.39139896,1194.3,1194.2,3.49570402]
[1672558380310,8.39139896,1194.3,1194.2,4.75211441]
[1672558385669,3.99744007,1194.3,1194.2,4.75211441]
[1672558386821,8.39139896,1194.3,1194.2,4.75211441]
[1672558387031,3.99744007,1194.3,1194.2,4.75211441]
[1672558389552,3.99744007,1194.3,1194.2,3.49570402]
[1672558389763,8.39139896,1194.3,1194.2,3.49570402]
[1672558389977,8.39139896,1194.3,1194.2,11.87370402]
[1672558399547,8.39139896,1194.3,1194.2,13.13011441]
[1672558399866,8.39139896,1194.3,1194.2,11.87370402]
[1672558400382,8.39139896,1194.3,1194.2,13.13011441]
[1672558402395,8.39139896,1194.3,1194.2,11.87370402]
[1672558405222,8.39139896,1194.3,1194.2,13.13011441]
[1672558406382,3.99744007,1194.3,1194.2,13.13011441]
[1672558407329,9.41146285,1194.4,1194.2,13.13011441]
[1672558407744,4.0,1194.3,1194.2,13.13011441]
[1672558409535,4.39395889,1194.4,1194.2,13.13011441]
[1672558410483,4.0,1194.3,1194.2,13.13011441]
[1672558411527,8.39395889,1194.3,1194.2,13.13011441]
[1672558416160,4.0,1194.3,1194.2,13.13011441]
[1672558417838,9.41146285,1194.4,1194.2,13.13011441]
[1672558418048,4.39395889,1194.4,1194.2,15.01472999]
[1672558419843,4.39395889,1194.4,1194.2,13.13011441]
[1672558420472,4.39395889,1194.4,1194.2,15.01472999]
[1672558424891,4.39395889,1194.6,1194.3,12.77552418]
[1672558425100,4.39395889,1194.6,1194.4,1.25580853]
[1672558425522,8.39395889,1194.6,1194.5,0.5]
[1672558425939,8.39395889,1194.6,1194.5,4.0]
[1672558427619,13.41146285,1194.6,1194.5,4.0]
[1672558428352,8.39395889,1194.6,1194.5,4.0]
[1672558431510,13.41146285,1194.6,1194.5,4.0]
[1672558431721,8.39395889,1194.6,1194.5,4.0]
[1672558435931,3.5,1194.5,1194.4,12.378]
[1672558439083,3.5,1194.5,1194.3,1.25580853]
[1672558439084,3.5,1194.5,1194.3,8.378]
[1672558439292,7.89395889,1194.5,1194.3,8.378]
[1672558440345,7.89395889,1194.5,1194.4,4.0]
[1672558440557,3.5,1194.5,1194.4,4.0]
[1672558448760,4.39395889,1194.6,1194.4,4.0]
[1672558448966,11.84620658,1194.7,1194.4,5.25580853]
[1672558448967,4.39395889,1194.7,1194.4,5.25580853]
[1672558449184,4.0,1194.6,1194.4,5.25580853]
[1672558450021,4.0,1194.6,1194.5,8.378]
[1672558464630,8.39395889,1194.6,1194.4,13.63380853]
[1672558464832,8.39395889,1194.6,1194.4,12.378]
[1672558465364,8.39395889,1194.6,1194.4,13.63380853]
[1672558466105,8.39395889,1194.6,1194.4,12.378]
[1672558480198,8.39395889,1194.6,1194.4,13.63380853]
[1672558482705,8.39395889,1194.6,1194.4,12.378]
[1672558483444,8.39395889,1194.6,1194.4,13.63380853]
[1672558483759,8.39395889,1194.6,1194.4,12.378]
[1672558484703,8.39395889,1194.6,1194.4,13.63380853]
[1672558488488,8.39395889,1194.6,1194.4,15.51842411]
[1672558488806,8.39395889,1194.6,1194.4,13.63380853]
[1672558489012,8.39395889,1194.6,1194.4,15.51842411]
[1672558489222,8.39395889,1194.6,1194.4,13.63380853]
[1672558489428,8.39395889,1194.6,1194.4,15.51842411]
[1672558489846,8.39395889,1194.6,1194.4,13.63380853]
[1672558490167,8.39395889,1194.6,1194.4,15.51842411]
[1672558491635,8.39395889,1194.6,1194.4,13.63380853]
[1672558496575,8.39395889,1194.6,1194.4,15.57421989]
[1672558513283,4.0,1194.6,1194.4,15.57421989]
[1672558513703,8.39395889,1194.6,1194.4,15.57421989]
[1672558518113,8.39395889,1194.6,1194.4,11.57421989]
[1672558518436,1.1814,1194.4,1194.3,1.25580853]
[1672558518653,1.1814,1194.4,1194.2,8.378]
[1672558518855,4.39302677,1194.3,1194.0,1.25580853]
[1672558519061,4.39302677,1194.2,1194.0,3.14042411]
[1672558519283,4.39302677,1194.2,1193.9,3.14042411]
[1672558519486,9.41297604,1194.3,1193.9,1.25580853]
[1672558519697,3.5,1194.2,1194.0,4.0]
[1672558519903,7.89302677,1194.2,1193.9,9.63380853]
[1672558520226,7.89302677,1194.2,1193.9,13.63380853]
[1672558520432,7.89302677,1194.2,1194.0,3.5]
[1672558520749,3.5,1194.2,1194.0,3.5]
[1672558521792,3.5,1194.2,1193.9,12.378]
[1672558523474,3.5,1194.2,1194.0,3.5]
[1672558524216,3.5,1194.2,1193.9,12.378]
[1672558525274,3.5,1194.2,1193.8,11.0889187]
[1672558525578,3.5,1194.2,1193.7,3.14042411]
[1672558525579,4.39302677,1194.1,1193.7,4.0]
[1672558525785,4.0,1194.0,1193.7,4.0]
[1672558536101,4.6814,1194.2,1193.7,12.378]
[1672558536302,3.5,1194.2,1193.7,23.22670142]
[1672558542083,3.5,1194.2,1193.7,24.40810142]
[1672558546502,4.0,1194.3,1193.7,25.66390995]
[1672558546913,4.0,1194.3,1193.7,27.54852553]
[1672558549232,4.0,1194.3,1193.8,1.25580853]
[1672558549433,4.0,1194.3,1193.9,11.878]
[1672558549853,4.0,1194.3,1193.9,21.69192259]
[1672558550170,4.0,1194.3,1194.0,4.0]
[1672558555850,4.0,1194.3,1194.0,12.378]
[1672558557209,8.39302677,1194.3,1194.0,12.378]
[1672558561631,4.0,1194.3,1194.0,13.63380853]
[1672558562376,8.39302677,1194.3,1194.0,13.63380853]
[1672558562999,4.0,1194.3,1194.0,13.63380853]
[1672558563211,4.0,1194.3,1194.0,12.378]
[1672558565417,8.39302677,1194.3,1194.0,12.378]
[1672558568995,4.0,1194.3,1194.0,13.63380853]
[1672558571305,4.39302677,1194.4,1194.1,2.43720853]
[1672558571524,9.41297604,1194.5,1194.1,10.81520853]
[1672558571833,4.0,1194.4,1194.2,3.5]
[1672558573231,4.39302677,1194.5,1194.2,11.878]
[1672558573425,3.5,1194.4,1194.2,11.878]
[1672558573758,4.39302677,1194.5,1194.2,11.878]
[1672558573962,8.39302677,1194.5,1194.2,11.878]
[1672558577325,3.5,1194.4,1194.2,11.878]
[1672558593898,3.5,1194.4,1194.1,1.25580853]
[1672558594217,7.89302677,1194.4,1194.1,1.25580853]
[1672558594426,3.5,1194.4,1194.1,12.85494248]
[1672558594629,3.5,1194.4,1194.2,3.5]
[1672558594948,7.89302677,1194.4,1194.2,3.5]
[1672558595378,7.89302677,1194.4,1194.2,3.4963467]
[1672558598447,7.89302677,1194.4,1194.2,11.8743467]
[1672558598708,4.39302677,1194.4,1194.2,11.8743467]
[1672558598863,13.41297604,1194.5,1194.2,11.8743467]
[1672558599613,4.39302677,1194.4,1194.2,11.8743467]
[1672558604961,4.39302677,1194.4,1194.2,13.13015523]
[1672558605703,13.41297604,1194.5,1194.2,13.13015523]
[1672558607274,4.39302677,1194.4,1194.2,15.01477081]
[1672558613478,8.39302677,1194.5,1194.3,1.25580853]
[1672558614527,13.41297604,1194.5,1194.3,1.25580853]
[1672558615791,8.39302677,1194.5,1194.3,1.25580853]
[1672558616111,4.39302677,1194.4,1194.2,15.01477081]
[1672558620520,4.39302677,1194.4,1194.2,13.13015523]
[1672558622304,4.39302677,1194.4,1194.2,15.01477081]
[1672558623034,4.39302677,1194.4,1194.2,13.13015523]
[1672558624088,4.39302677,1194.4,1194.2,15.01477081]
[1672558624499,13.41297604,1194.5,1194.3,1.25580853]
[1672558627334,13.41297604,1194.5,1194.2,15.01477081]
[1672558627961,4.39302677,1194.4,1194.2,15.01477081]
[1672558636460,4.39048451,1194.4,1194.2,15.01477081]
[1672558638248,3.5,1194.3,1194.2,15.01477081]
[1672558639292,3.5,1194.3,1194.2,1.25580853]
[1672558639513,3.5,1194.3,1194.1,12.85494248]
[1672558639712,3.5,1194.3,1194.2,1.25580853]
[1672558639921,3.5,1194.3,1194.1,12.85494248]
[1672558643500,3.5,1194.3,1194.1,4.47694248]
[1672558643817,3.5,1194.3,1194.1,16.54039409]
[1672558644129,3.5,1194.3,1194.1,14.65577851]
[1672558644656,3.5,1194.3,1194.2,3.5]
[1672558650762,3.5,1194.3,1194.2,4.75580853]
[1672558654542,3.5,1194.3,1194.2,3.5]
[1672558661693,3.5,1194.3,1194.2,4.75538413]
[1672558664522,3.5,1194.3,1194.2,3.5]
[1672558667581,4.39378276,1194.4,1194.2,3.5]
[1672558671574,3.5,1194.3,1194.2,3.5]
[1672558671784,4.39378276,1194.4,1194.2,3.5]
[1672558672311,4.39378276,1194.4,1194.2,11.878]
[1672558674937,4.39378276,1194.4,1194.3,1.1814]
[1672558675666,4.39378276,1194.4,1194.3,20.37099266]
[1672558677667,4.39378276,1194.4,1194.3,11.99299266]
[1672558677873,8.39378276,1194.4,1194.2,3.5]
[1672558678092,3.5,1194.3,1194.2,3.5]
[1672558680081,8.39378276,1194.4,1194.2,11.878]
[1672558681977,8.39378276,1194.4,1194.2,13.13219023]
[1672558682175,4.0,1194.4,1194.2,15.01680581]
[1672558683343,4.0,1194.4,1194.3,1.25419023]
[1672558701838,4.0,1194.4,1194.3,3.13880581]
[1672558705734,8.1574095,1194.5,1194.3,3.13880581]
[1672558705939,3.76362674,1194.5,1194.4,4.0]
[1672558706142,7.76362674,1194.5,1194.4,4.0]
[1672558706355,7.76362674,1194.5,1194.4,5.25419023]
[1672558706789,3.76362674,1194.5,1194.4,5.25419023]
[1672558706996,4.0,1194.5,1194.4,7.13880581]
[1672558707309,4.0,1194.5,1194.4,5.25419023]
[1672558707507,8.1574095,1194.6,1194.4,5.25419023]
[1672558707745,4.0,1194.5,1194.4,5.25419023]
[1672558707940,4.0,1194.5,1194.4,7.13880581]
[1672558708152,4.0,1194.5,1194.4,5.25419023]
[1672558709649,7.76362674,1194.5,1194.4,5.25419023]
[1672558710482,7.76362674,1194.5,1194.4,4.0]
[1672558710969,12.1574095,1194.5,1194.4,4.0]
[1672558714575,12.1574095,1194.5,1194.4,3.99725571]
[1672558716785,8.39378276,1194.5,1194.4,3.99725571]
[1672558722989,7.76668572,1194.5,1194.4,5.25144594]
[1672558724145,7.76668572,1194.5,1194.4,3.99725571]
[1672558729515,7.76668572,1194.5,1194.4,5.25144594]
[1672558730199,7.76668572,1194.5,1194.4,3.99725571]
[1672558731032,7.76668572,1194.5,1194.4,5.25144594]
[1672558731324,3.76668572,1194.5,1194.4,5.25144594]
[1672558731514,3.76668572,1194.5,1194.4,13.62944594]
[1672558734869,7.76668572,1194.5,1194.4,13.62944594]
[1672558736337,3.76668572,1194.5,1194.4,13.62944594]
[1672558736651,7.26668572,1194.5,1194.4,13.62944594]
[1672558737174,3.76668572,1194.5,1194.4,13.62944594]
[1672558737493,7.76668572,1194.5,1194.4,13.62944594]
[1672558738851,3.76668572,1194.5,1194.4,13.62944594]
[1672558741161,3.76668572,1194.5,1194.4,12.37525571]
[1672558741895,3.76668572,1194.5,1194.4,13.62944594]
[1672558754195,7.76668572,1194.5,1194.4,13.62944594]
[1672558755982,3.76668572,1194.5,1194.4,13.62944594]
[1672558756189,7.76668572,1194.5,1194.4,13.62944594]
[1672558756603,7.76029176,1194.5,1194.4,13.62944594]
[1672558761028,7.76029176,1194.5,1194.4,15.51406152]
[1672558767965,4.0,1194.5,1194.4,14.25987129]
[1672558768488,4.0,1194.5,1194.4,15.5156502]
[1672558771646,7.76849089,1194.5,1194.4,15.5156502]
[1672558772270,4.0,1194.5,1194.4,14.25987129]
[1672558772487,8.16227365,1194.6,1194.4,14.25987129]
[1672558772689,8.16227365,1194.6,1194.5,1.25555791]
[1672558775419,8.16227365,1194.8,1194.6,3.5]
[1672558775631,8.16227365,1194.8,1194.7,4.0]
[1672558776271,8.39378276,1194.8,1194.7,4.0]
[1672558776704,7.76422286,1194.8,1194.7,4.0]
[1672558776907,12.15800562,1194.8,1194.7,4.0]
[1672558779551,7.76422286,1194.8,1194.7,4.0]
[1672558779982,12.15800562,1194.8,1194.7,4.0]
[1672558784822,7.76422286,1194.8,1194.7,4.0]
[1672558787874,12.15800562,1194.8,1194.7,4.0]
[1672558789662,7.76422286,1194.8,1194.7,4.0]
[1672558789980,12.15800562,1194.8,1194.7,4.0]
[1672558791555,7.76422286,1194.8,1194.7,4.0]
[1672558799754,3.76422286,1194.8,1194.7,4.0]
[1672558800073,3.76422286,1194.9,1194.7,12.50724387]
[1672558800275,4.0,1194.8,1194.7,12.50724387]
[1672558800481,7.76422286,1194.8,1194.7,12.50724387]
[1672558805554,4.0,1194.8,1194.7,12.50724387]
[1672558805734,7.76422286,1194.8,1194.7,12.50724387]
[1672558805946,4.0,1194.8,1194.7,12.50724387]
[1672558806262,7.76422286,1194.8,1194.7,12.50724387]
[1672558815083,12.15800562,1194.8,1194.7,12.50724387]
[1672558817082,12.15800562,1194.8,1194.6,15.0151369]
[1672558817396,3.76422286,1194.7,1194.6,13.13285476]
[1672558827265,7.76422286,1194.8,1194.6,11.878]
[1672558827471,7.76422286,1194.8,1194.7,1.25486406]
[1672558827682,7.76422286,1194.8,1194.6,15.0151462]
[1672558828107,12.15800562,1194.8,1194.6,15.0151462]
[1672558828735,7.76422286,1194.8,1194.7,1.25486406]
[1672558829156,7.76422286,1194.8,1194.7,1.57054559]
[1672558835362,3.76422286,1194.8,1194.7,1.57054559]
[1672558835571,7.76422286,1194.8,1194.7,1.57054559]
[1672558839139,7.76422286,1194.8,1194.7,1.56471582]
[1672558851443,7.76422286,1194.8,1194.7,0.31568153]
[1672558862395,12.15800562,1194.8,1194.7,0.31568153]
[1672558862588,7.76422286,1194.8,1194.7,0.31568153]
[1672558862799,12.15800562,1194.8,1194.7,0.31568153]
[1672558862998,7.76422286,1194.8,1194.7,0.31568153]
[1672558867207,7.76422286,1194.8,1194.7,10.57596367]
[1672558870270,7.76422286,1194.8,1194.7,8.69368153]
[1672558874045,3.76422286,1194.8,1194.7,10.57596367]
[1672558874364,7.76422286,1194.8,1194.7,10.57596367]
[1672558874997,7.76422286,1194.8,1194.7,8.69368153]
[1672558878045,3.76422286,1194.8,1194.7,8.69368153]
[1672558878252,3.71400315,1194.9,1194.7,11.202062]
[1672558878468,3.71400315,1194.9,1194.8,14.26081258]
[1672558878469,4.0,1194.9,1194.8,14.26081258]
[1672558884249,3.5,1195.0,1194.8,14.26081258]
[1672558884250,4.0,1195.0,1194.8,14.26081258]
[1672558891509,4.0,1195.0,1194.8,12.378]
[1672558891711,4.0,1195.0,1194.8,14.26081258]
[1672558892346,4.0,1195.0,1194.8,12.378]
[1672558892564,4.0,1195.0,1194.8,14.26081258]
[1672558893195,4.0,1195.0,1194.8,12.378]
[1672558893399,4.0,1195.0,1194.8,14.26081258]
[1672558894244,4.0,1195.0,1194.8,12.378]
[1672558894448,4.0,1195.0,1194.8,14.26081258]
[1672558894767,4.0,1195.0,1194.8,12.378]
[1672558897180,3.5,1195.1,1194.8,12.378]
[1672558897500,4.0,1195.1,1194.8,14.26081258]
[1672558898341,4.0,1195.1,1194.8,12.378]
[1672558898553,4.0,1195.1,1194.8,14.26081258]
[1672558898753,4.0,1195.1,1194.8,12.378]
[1672558900123,4.0,1195.1,1194.8,14.26081258]
[1672558903068,4.0,1195.1,1194.8,12.378]
[1672558907584,4.0,1195.1,1194.8,14.26081258]
[1672558907795,4.0,1195.1,1194.9,11.878]
[1672558908315,4.0,1195.1,1194.9,22.82489162]
[1672558908525,4.0,1195.1,1195.0,4.0]
[1672558918196,8.39378276,1195.1,1195.0,4.0]
[1672558924182,4.0,1195.1,1195.0,4.0]
[1672558930502,8.39378276,1195.1,1195.0,4.0]
[1672558930815,4.0,1195.1,1195.0,4.0]
[1672558936484,8.39378276,1195.1,1195.0,4.0]
[1672558944048,4.0,1195.1,1195.0,4.0]
[1672558947521,7.89378276,1195.2,1195.0,4.0]
[1672558947833,7.89378276,1195.2,1195.0,5.88281258]
[1672558949515,4.0,1195.1,1195.0,4.0]
[1672558952775,8.39378276,1195.1,1195.0,4.0]
[1672558953720,4.0,1195.1,1195.0,4.0]
[1672558954134,8.39378276,1195.1,1195.0,4.0]
[1672558955189,4.0,1195.1,1195.0,4.0]
[1672558955398,8.39378276,1195.1,1195.0,4.0]
[1672558957081,4.0,1195.1,1195.0,4.0]
[1672558957283,8.39378276,1195.1,1195.0,4.0]
[1672558959184,8.39378276,1195.1,1195.0,5.25479044]
[1672558959815,8.39378276,1195.1,1195.0,4.0]
[1672558961813,8.39378276,1195.1,1195.0,5.25479044]
[1672558962969,4.0,1195.1,1195.0,5.25479044]
[1672558968324,8.39378276,1195.1,1195.0,5.25479044]
[1672558968535,4.0,1195.1,1195.0,5.25479044]
[1672558972743,12.91373203,1195.2,1195.0,5.25479044]
[1672558972958,7.89378276,1195.2,1195.0,7.13406585]
[1672558974319,7.89378276,1195.2,1195.0,5.25125327]
[1672558974636,7.89378276,1195.2,1195.0,7.13406585]
[1672558975162,4.0,1195.1,1195.0,7.13406585]
[1672558975795,4.0,1195.1,1195.0,5.25125327]
[1672558981467,7.89378276,1195.2,1195.0,5.25125327]
[1672558981677,3.0,1195.1,1195.0,5.25125327]
[1672558981888,4.0,1195.1,1195.0,5.25125327]
[1672558985982,4.0,1195.1,1194.9,15.70168206]
[1672558986193,8.39378276,1195.1,1195.0,4.0]
[1672558990083,4.0,1195.1,1195.0,4.0]
[1672558990506,8.39378276,1195.1,1195.0,4.0]
[1672558991035,8.39378276,1195.1,1195.0,5.25479044]
[1672558991243,4.0,1195.1,1195.0,5.25479044]
[1672558991558,4.0,1195.1,1195.0,4.0]
[1672558991771,8.39378276,1195.1,1195.0,4.0]
[1672559012592,4.0,1195.1,1195.0,4.0]
[1672559014377,8.39378276,1195.1,1195.0,4.0]
[1672559015429,4.0,1195.1,1195.0,4.0]
[1672559015743,8.39378276,1195.1,1195.0,4.0]
[1672559015952,4.0,1195.1,1195.0,4.0]
[1672559016694,8.39378276,1195.1,1195.0,4.0]
[1672559029622,4.0,1195.1,1195.0,5.25479044]
[1672559031087,4.0,1195.1,1195.0,4.0]
[1672559031304,4.0,1195.1,1195.0,5.25479044]
[1672559031514,4.0,1195.1,1195.0,4.0]
[1672559031729,8.39378276,1195.1,1195.0,4.0]
[1672559039922,8.39378276,1195.1,1195.0,3.99735327]
[1672559042969,8.39378276,1195.1,1195.0,5.25214371]
[1672559044016,7.89378276,1195.2,1195.0,7.13495629]
[1672559044757,4.39378276,1195.2,1195.0,7.13495629]
[1672559044959,8.39378276,1195.2,1195.0,7.13495629]
[1672559045483,4.0,1195.2,1195.0,5.25214371]
[1672559045695,8.39378276,1195.2,1195.0,5.25214371]
[1672559048012,8.39378276,1195.2,1195.0,7.13495629]
[1672559048426,4.0,1195.2,1195.0,7.13495629]
[1672559049798,8.39378276,1195.2,1195.0,7.13495629]
[1672559050319,4.0,1195.2,1195.0,7.13495629]
[1672559051693,8.39378276,1195.2,1195.0,7.13495629]
[1672559052117,4.0,1195.2,1195.0,7.13495629]
[1672559052748,8.39378276,1195.2,1195.0,5.25214371]
[1672559056315,4.0,1195.2,1195.0,5.25214371]
[1672559057679,8.39378276,1195.2,1195.0,5.25214371]
[1672559058520,4.0,1195.2,1195.0,5.25214371]
[1672559059782,8.39378276,1195.2,1195.0,5.25214371]
[1672559066928,8.39045955,1195.2,1195.0,5.25214371]
[1672559076495,8.39045955,1195.2,1195.0,3.99735327]
[1672559076910,13.41040882,1195.2,1195.0,3.99735327]
[1672559077232,8.39045955,1195.2,1195.0,5.25214371]
[1672559082588,13.41040882,1195.2,1195.0,5.25214371]
[1672559082798,8.39045955,1195.2,1195.0,7.13495629]
[1672559085530,8.39045955,1195.2,1195.1,1.25479044]
[1672559086160,8.39045955,1195.2,1195.0,7.13495629]
[1672559089840,8.39045955,1195.2,1195.1,1.25479044]
[1672559090257,3.99667679,1195.2,1195.1,1.25479044]
[1672559092988,3.99667679,1195.2,1195.0,7.13495629]
[1672559093192,8.39045955,1195.2,1195.0,7.13495629]
[1672559099388,8.39045955,1195.2,1195.0,5.25214371]
[1672559102236,8.39045955,1195.2,1195.0,3.99735327]
[1672559102440,13.41040882,1195.2,1195.0,3.99735327]
[1672559103075,8.39045955,1195.2,1195.0,5.25214371]
[1672559111067,8.39045955,1195.2,1195.0,3.99735327]
[1672559111379,13.41040882,1195.2,1195.0,3.99735327]
[1672559116842,4.39378276,1195.2,1195.0,5.25214371]
[1672559117054,10.66829813,1195.2,1195.0,3.99735327]
[1672559117366,4.39378276,1195.3,1195.1,1.25479044]
[1672559117576,4.0,1195.2,1195.1,1.25479044]
[1672559118519,3.5,1195.2,1195.1,1.25479044]
[1672559118942,4.0,1195.2,1195.1,1.25479044]
[1672559121888,3.5,1195.2,1195.1,1.25479044]
[1672559135129,3.5,1195.2,1195.1,1.24955286]
[1672559135335,3.5,1195.2,1195.0,3.99735327]